bitfinex-derivatives/quotes_SOLF0:USTF0_20260227
["timestamp","ask_amount","ask_price","bid_price","bid_amount"]
[1772208416211,11.1154552,82.18,82.106,35.02920986]
[1772208416405,10.76182229,82.179,82.106,35.02920986]
[1772208416610,10.9521,82.174,82.117,35.02880204]
[1772208416801,11.1154552,82.198,82.117,35.02880204]
[1772208417005,10.76345167,82.197,82.117,35.02880204]
[1772208417205,10.76345167,82.196,82.136,35.02880204]
[1772208417410,11.1154552,82.218,82.136,35.02880204]
[1772208417606,10.7636242,82.217,82.136,35.02880204]
[1772208417903,10.7636242,82.216,82.136,35.02880204]
[1772208418103,21.8790794,82.215,82.141,35.02205509]
[1772208418302,11.1154552,82.21,82.141,35.02205509]
[1772208418510,10.7636242,82.209,82.141,35.02205509]
[1772208418804,10.7636242,82.208,82.141,35.02205509]
[1772208419108,9.22792045,82.2,82.124,35.0216487]
[1772208419314,10.7636242,82.199,82.124,35.0216487]
[1772208419504,10.7636242,82.198,82.124,35.0216487]
[1772208419704,10.7636242,82.197,82.124,35.0216487]
[1772208419905,9.22792045,82.18,82.101,34.99338917]
[1772208420105,9.22792045,82.17,82.101,34.99338917]
[1772208420406,10.9554,82.149,82.101,34.99338917]
[1772208420602,10.9554,82.149,82.031,170.662]
[1772208420603,9.22792045,82.15,82.081,34.99295568]
[1772208421209,10.54775373,82.149,82.081,34.99295568]
[1772208421403,5.47524009,82.167,82.041,34.99845251]
[1772208421404,9.22792045,82.13,82.041,34.99845251]
[1772208421809,10.9599,82.115,82.058,34.99845251]
[1772208422010,9.22792045,82.15,82.058,34.99845251]
[1772208422210,10.54924421,82.149,82.058,34.99845251]
[1772208422409,10.54924421,82.148,82.058,34.99845251]
[1772208422609,11.1154552,82.173,82.082,34.99803473]
[1772208422908,9.22792045,82.16,82.082,34.99803473]
[1772208423105,11.1154552,82.158,82.082,34.99803473]
[1772208423411,9.22792045,82.16,82.082,34.99803473]
[1772208423412,10.55503943,82.157,82.082,34.99803473]
[1772208423610,10.55503943,82.156,82.082,34.99803473]
[1772208423812,10.9581,82.129,82.082,34.99803473]
[1772208424008,9.22792045,82.16,82.053,35.03680216]
[1772208424215,9.22792045,82.12,81.966,170.7966]
[1772208424420,10.55175845,82.119,82.0,9.22792045]
[1772208424711,11.1154552,82.113,81.996,2.11999281]
[1772208424912,11.1154552,82.113,82.019,10.9726]
[1772208424913,10.9645,82.081,82.019,10.9726]
[1772208425114,9.22792045,82.1,82.01,9.22792045]
[1772208425315,10.5412842,82.099,82.01,9.22792045]
[1772208425511,10.5412842,82.098,82.01,9.22792045]
[1772208425815,10.5412842,82.097,82.01,9.22792045]
[1772208426011,9.22792045,82.1,82.01,9.22792045]
[1772208426012,10.9656,82.072,82.015,10.9732]
[1772208426208,10.9656,82.072,82.016,25.53431859]
[1772208426414,9.22792045,82.1,82.016,25.53431859]
[1772208426415,10.52463693,82.094,82.016,25.53431859]
[1772208426615,10.9658,82.071,82.018,25.53431859]
[1772208427217,9.22792045,82.11,82.02,25.53431859]
[1772208427418,9.22792045,82.08,81.997,25.53446819]
[1772208427721,10.9643,82.082,82.001,25.53446819]
[1772208428423,10.9655,82.073,82.021,25.53383187]
[1772208429124,10.9667,82.064,82.021,25.53383187]
[1772208429320,10.51281063,82.099,82.021,25.53383187]
[1772208429519,10.9655,82.073,82.021,25.53383187]
[1772208429715,10.51281063,82.097,82.021,25.53383187]
[1772208429920,9.22792045,82.1,82.021,25.53383187]
[1772208430325,10.9653,82.075,82.021,25.53383187]
[1772208430515,10.50681499,82.098,82.021,25.53383187]
[1772208430723,10.964,82.084,82.023,25.71658827]
[1772208431125,9.22792045,82.1,82.023,25.71658827]
[1772208431427,10.50395028,82.099,82.023,25.71658827]
[1772208431630,10.50395028,82.098,82.023,25.71658827]
[1772208431825,10.50395028,82.097,82.023,25.71658827]
[1772208432024,10.50395028,82.096,82.023,25.71658827]
[1772208432225,10.50395028,82.095,82.023,25.71658827]
[1772208432426,9.22792045,82.1,82.023,25.71658827]
[1772208433328,10.51359746,82.099,82.023,25.71658827]
[1772208433517,9.22792045,82.1,82.023,25.71658827]
[1772208433518,10.51359746,82.098,82.023,25.71658827]
[1772208433719,10.51359746,82.097,82.023,25.71658827]
[1772208434021,10.9644,82.081,82.025,25.70268999]
[1772208434417,10.9633,82.09,82.037,25.70236135]
[1772208435329,22.24449544,82.143,82.01,9.22792045]
[1772208435330,10.9618,82.101,82.04,25.74907945]
[1772208435519,10.51675627,82.119,82.04,25.74907945]
[1772208435723,9.22792045,82.14,82.04,25.74907945]
[1772208435929,10.51839719,82.139,82.04,25.74907945]
[1772208436128,10.51839719,82.138,82.04,25.74907945]
[1772208436318,9.22792045,82.12,82.04,25.74907945]
[1772208437025,10.9592,82.12,82.062,25.74882495]
[1772208437525,10.958,82.13,82.065,25.74687091]
[1772208438030,10.958,82.13,82.072,10.9656]
[1772208438228,10.9566,82.14,82.073,25.74662125]
[1772208438523,10.9566,82.14,82.088,25.74662125]
[1772208438728,9.2442511,82.17,82.088,25.74662125]
[1772208438928,10.53185982,82.169,82.088,25.74662125]
[1772208439124,9.2442511,82.17,82.005,170.7149]
[1772208439125,9.2442511,82.13,82.03,9.2442511]
[1772208439435,10.9598,82.116,82.03,9.2442511]
[1772208439833,10.9598,82.116,82.057,10.9675]
[1772208440837,9.2442511,82.13,82.03,9.2442511]
[1772208440838,10.9609,82.108,82.048,10.9688]
[1772208441023,10.9609,82.108,82.049,16.5346127]
[1772208441431,10.9612,82.105,82.049,16.5346127]
[1772208441835,10.53099952,82.126,82.049,16.5346127]
[1772208442136,10.53099952,82.125,82.049,16.5346127]
[1772208442337,10.53099952,82.124,82.049,16.5346127]
[1772208442532,10.9616,82.103,82.049,16.5346127]
[1772208442833,9.2442511,82.13,82.049,16.5346127]
[1772208443037,10.96,82.114,82.059,10.9673]
[1772208443439,10.96,82.114,82.06,16.59305964]
[1772208443939,10.51913463,82.113,82.021,16.59305964]
[1772208444141,10.51693361,82.112,82.031,16.59305964]
[1772208444345,10.9618,82.101,82.041,16.59279459]
[1772208444544,9.2442511,82.13,82.041,16.59279459]
[1772208444738,10.51856479,82.129,82.041,16.59279459]
[1772208444937,10.51856479,82.128,82.041,16.59279459]
[1772208445138,10.51856479,82.127,82.041,16.59279459]
[1772208445442,10.9614,82.104,82.053,16.76358527]
[1772208446740,11.1154552,82.135,82.053,16.76358527]
[1772208446741,21.915,82.133,82.053,16.76358527]
[1772208446942,9.2442511,82.12,82.021,16.76361156]
[1772208447150,9.2442511,82.1,82.021,16.76361156]
[1772208447447,10.51355037,82.099,82.021,16.76361156]
[1772208447650,9.2442511,82.1,82.024,16.66558976]
[1772208448946,10.9646,82.08,82.032,16.66545582]
[1772208449143,21.9203,82.114,82.032,16.66545582]
[1772208449353,10.50126634,82.113,82.032,16.66545582]
[1772208449552,10.50126634,82.112,82.032,16.66545582]
[1772208449749,10.50126634,82.111,82.032,16.66545582]
[1772208450048,10.9635,82.088,82.034,16.70004249]
[1772208450647,9.2442511,82.12,82.045,16.69996653]
[1772208450851,11.1154552,82.145,82.045,16.69996653]
[1772208451049,10.56750224,82.144,82.077,16.69996653]
[1772208451350,9.2442511,82.17,82.077,16.69996653]
[1772208451650,10.9561,82.144,82.095,16.70043172]
[1772208451854,10.56975053,82.168,82.095,16.70043172]
[1772208452054,9.2442511,82.19,82.095,16.70043172]
[1772208452253,10.56979496,82.189,82.095,16.70043172]
[1772208452453,10.56979496,82.188,82.095,16.70043172]
[1772208452654,10.56979496,82.187,82.111,16.700367]
[1772208452950,10.56979496,82.186,82.111,16.700367]
[1772208453147,9.2442511,82.19,82.111,16.700367]
[1772208453353,10.56871499,82.189,82.126,16.70876042]
[1772208453553,9.2442511,82.21,82.126,16.70876042]
[1772208453853,10.57060129,82.209,82.136,16.70876042]
[1772208454051,9.2442511,82.23,82.136,16.70876042]
[1772208454250,9.2442511,82.25,82.151,16.70870832]
[1772208454553,10.9449,82.228,82.166,16.70870832]
[1772208454753,10.56570546,82.227,82.131,16.70870832]
[1772208454954,10.56570546,82.226,82.131,16.70870832]
[1772208455150,10.9474,82.209,82.144,16.66901846]
[1772208455355,14.85622483,82.252,82.144,16.66901846]
[1772208455356,11.1154552,82.248,82.144,16.66901846]
[1772208455547,9.2442511,82.25,82.144,16.66901846]
[1772208455548,10.56075175,82.243,82.144,16.66901846]
[1772208455753,10.9462,82.218,82.153,16.66901846]
[1772208456358,9.2442511,82.23,82.153,16.66901846]
[1772208456656,10.55915427,82.229,82.153,16.66901846]
[1772208456860,10.9476,82.207,82.153,16.66901846]
[1772208457455,10.55915427,82.225,82.156,16.70793081]
[1772208457751,466.75339731,82.244,82.156,16.70793081]
[1772208457951,10.55275737,82.243,82.156,16.70793081]
[1772208458150,10.9468,82.213,82.157,16.70788021]
[1772208459458,10.948,82.205,82.157,16.70788021]
[1772208459762,9.2442511,82.23,82.157,16.70788021]
[1772208459962,10.55275737,82.229,82.157,16.70788021]
[1772208460165,10.55275737,82.228,82.157,16.70788021]
[1772208460463,10.55275737,82.227,82.157,16.70788021]
[1772208460656,10.55275737,82.226,82.157,16.70788021]
[1772208460857,10.55275737,82.225,82.157,16.70788021]
[1772208461052,9.2442511,82.22,82.157,16.70788021]
[1772208461255,10.55275737,82.219,82.157,16.70788021]
[1772208461451,10.9495,82.194,82.157,16.70788021]
[1772208462264,9.2442511,82.23,82.157,16.70788021]
[1772208462458,10.54453892,82.229,82.138,17.04744995]
[1772208462657,10.54453892,82.228,82.138,17.04744995]
[1772208462852,170.2253,82.242,82.138,17.04744995]
[1772208462853,9.2442511,82.21,82.138,17.04744995]
[1772208463065,10.54453892,82.209,82.138,17.04744995]
[1772208463258,10.54453892,82.208,82.138,17.04744995]
[1772208463464,9.2442511,82.22,82.138,17.04744995]
[1772208463665,9.2442511,82.2,82.101,17.04307115]
[1772208463966,9.2442511,82.19,82.112,17.04307115]
[1772208464168,10.53830492,82.189,82.112,17.04307115]
[1772208464360,10.53830492,82.188,82.112,17.04307115]
[1772208464564,10.53830492,82.187,82.112,17.04307115]
[1772208464764,10.9559,82.145,82.112,17.04307115]
[1772208465169,10.9561,82.143,82.112,17.04307115]
[1772208466466,10.5380717,82.178,82.112,17.04307115]
[1772208466673,10.5380717,82.177,82.112,17.04307115]
[1772208466869,9.2442511,82.19,82.112,17.04307115]
[1772208467070,10.53321578,82.189,82.112,17.04307115]
[1772208467268,10.53321578,82.188,82.112,17.04307115]
[1772208467472,10.53321578,82.187,82.112,17.04307115]
[1772208467669,10.9548,82.154,82.112,17.04307115]
[1772208468476,10.9535,82.163,82.112,17.04307115]
[1772208468971,10.53278617,82.189,82.114,17.19491514]
[1772208469167,10.53278617,82.188,82.114,17.19491514]
[1772208469371,10.53278617,82.187,82.114,17.19491514]
[1772208469566,10.53278617,82.186,82.114,17.19491514]
[1772208469771,9.2442511,82.19,82.114,17.19491514]
[1772208469970,10.9524,82.171,82.117,10.9596]
[1772208470274,9.2442511,82.19,82.09,71.2442511]
[1772208470275,10.53415837,82.188,82.118,17.19134336]
[1772208470476,10.9544,82.156,82.118,17.19134336]
[1772208470678,9.2442511,82.19,82.118,17.19134336]
[1772208471376,10.9533,82.165,82.118,17.19134336]
[1772208472178,9.4832535,82.188,82.118,17.19134336]
[1772208472378,9.4832535,82.186,82.118,17.19134336]
[1772208472579,9.52539072,82.184,82.118,17.19134336]
[1772208472778,10.54128912,82.183,82.118,17.19134336]
[1772208473079,10.54128912,82.182,82.118,17.19134336]
[1772208473278,9.52539072,82.184,82.118,17.19134336]
[1772208473476,10.54796418,82.183,82.118,17.19134336]
[1772208473778,10.9529,82.167,82.12,15.98369673]
[1772208474873,10.9529,82.167,82.091,36.34]
[1772208474874,10.9519,82.176,82.129,15.98369673]
[1772208475173,20.19277035,82.202,82.129,15.98369673]
[1772208475377,10.55343471,82.201,82.129,15.98369673]
[1772208475577,10.55343471,82.2,82.129,15.98369673]
[1772208475773,10.55343471,82.199,82.129,15.98369673]
[1772208475971,10.9516,82.177,82.134,15.98369673]
[1772208476375,10.55343471,82.196,82.134,15.98369673]
[1772208476680,10.9516,82.177,82.136,15.98369673]
[1772208477071,10.9502,82.188,82.146,15.98369673]
[1772208477470,9.99759368,82.22,82.146,15.98369673]
[1772208477679,10.9501,82.189,82.148,15.98369673]
[1772208479283,10.949,82.197,82.151,15.98369673]
[1772208479581,10.56423682,82.219,82.151,15.98369673]
[1772208479783,10.948,82.204,82.161,15.98369673]
[1772208480284,10.948,82.204,82.163,10.9534]
[1772208480481,9.99759368,82.22,82.161,15.98369673]
[1772208480780,10.10659911,82.209,82.122,15.98369673]
[1772208480984,10.10659911,82.207,82.122,15.98369673]
[1772208481187,10.39658858,82.198,82.122,15.98369673]
[1772208481394,10.43428021,82.196,82.122,15.98369673]
[1772208481587,10.9539,82.16,82.122,15.98369673]
[1772208481779,10.43428021,82.178,82.122,15.98369673]
[1772208482177,9.2442511,82.19,82.122,15.98369673]
[1772208482378,10.4341293,82.188,82.122,15.98369673]
[1772208482579,10.56721661,82.187,82.122,15.98369673]
[1772208482779,10.56721661,82.187,82.1,9.2442511]
[1772208482780,10.4341293,82.188,82.124,15.98369673]
[1772208482974,10.57011922,82.187,82.124,15.98369673]
[1772208483185,10.47164988,82.185,82.124,15.98369673]
[1772208483488,10.57011922,82.184,82.124,15.98369673]
[1772208483681,10.25673809,82.182,82.124,15.98369673]
[1772208483882,10.57011922,82.181,82.124,15.98369673]
[1772208484081,10.57011922,82.18,82.124,15.98369673]
[1772208484281,10.57011922,82.179,82.124,15.98369673]
[1772208484482,10.57011922,82.178,82.124,15.98369673]
[1772208484682,10.57011922,82.177,82.124,15.98369673]
[1772208484883,10.9542,82.158,82.124,15.98369673]
[1772208485387,10.56751239,82.18,82.124,15.98369673]
[1772208485587,10.56751239,82.179,82.124,15.98369673]
[1772208485884,10.25673809,82.182,82.124,15.98369673]
[1772208485885,10.56751239,82.178,82.124,15.98369673]
[1772208486187,10.9529,82.168,82.124,15.98369673]
[1772208486489,10.25673809,82.182,82.124,15.98369673]
[1772208486788,10.954,82.16,82.124,15.98369673]
[1772208488290,10.9527,82.169,82.124,15.98369673]
[1772208489089,10.9537,82.162,82.124,15.98369673]
[1772208490192,10.9546,82.155,82.124,15.98369673]
[1772208491391,10.9534,82.164,82.124,15.98369673]
[1772208492490,10.9524,82.172,82.127,15.49998092]
[1772208493095,10.9524,82.172,82.129,15.49998092]
[1772208493892,10.9532,82.165,82.129,15.49998092]
[1772208494092,12.06905512,82.183,82.091,15.49998092]
[1772208494285,10.9542,82.158,82.109,15.49998092]
[1772208494991,10.9542,82.158,82.115,15.49998092]
[1772208495295,12.0700706,82.181,82.115,15.49998092]
[1772208495296,10.9532,82.165,82.115,15.49998092]
[1772208495494,23.18559609,82.181,82.117,15.49998092]
[1772208495495,10.62627295,82.164,82.117,15.49998092]
[1772208495699,10.62627295,82.163,82.117,15.49998092]
[1772208495902,10.62627295,82.162,82.117,15.49998092]
[1772208496101,11.76370274,82.18,82.119,15.49998092]
[1772208496302,10.62806185,82.179,82.119,15.49998092]
[1772208496492,10.62806185,82.178,82.119,15.49998092]
[1772208496694,10.62806185,82.177,82.119,15.49998092]
[1772208496898,10.9525,82.171,82.129,15.49998092]
[1772208498101,10.9534,82.164,82.129,15.49998092]
[1772208498303,11.11552549,82.189,82.129,15.49998092]
[1772208498506,10.9511,82.182,82.131,10.9576]
[1772208498708,10.63460155,82.181,82.132,15.49998092]
[1772208498908,10.63460155,82.18,82.132,15.49998092]
[1772208499110,10.63460155,82.179,82.132,15.49998092]
[1772208499403,10.9515,82.178,82.134,15.49998092]
[1772208499608,11.76434662,82.196,82.134,15.49998092]
[1772208499802,10.42731099,82.195,82.134,15.49998092]
[1772208500002,10.42731099,82.194,82.134,15.49998092]
[1772208500197,10.42731099,82.193,82.134,15.49998092]
[1772208500509,10.42731099,82.192,82.134,15.49998092]
[1772208500707,12.2351566,82.19,82.134,15.49998092]
[1772208500902,12.2351566,82.188,82.134,15.49998092]
[1772208501096,11.11552549,82.192,82.134,15.49998092]
[1772208501097,10.9534,82.164,82.134,15.49998092]
[1772208501302,12.2351566,82.186,82.134,15.49998092]
[1772208501504,10.42622712,82.185,82.134,15.49998092]
[1772208501705,10.42622712,82.184,82.134,15.49998092]
[1772208501903,10.42622712,82.183,82.134,15.49998092]
[1772208502102,10.42622712,82.182,82.134,15.49998092]
[1772208502297,10.9525,82.171,82.134,15.49998092]
[1772208503008,10.9514,82.179,82.135,10.9571]
[1772208503211,10.41893815,82.178,82.136,15.49998092]
[1772208503504,10.9514,82.179,82.136,15.49998092]
[1772208503505,9.2299811,82.2,82.136,15.49998092]
[1772208503706,10.42453979,82.199,82.136,15.49998092]
[1772208503906,10.42453979,82.198,82.136,15.49998092]
[1772208504211,12.25078293,82.196,82.136,15.49998092]
[1772208504505,10.42453979,82.195,82.136,15.49998092]
[1772208504702,10.42453979,82.194,82.136,15.49998092]
[1772208504898,10.9506,82.185,82.148,10.9554]
[1772208505099,10.42453979,82.184,82.148,10.9554]
[1772208505300,10.42453979,82.183,82.148,10.9554]
[1772208505504,10.9506,82.185,82.148,10.9554]
[1772208505707,10.42712771,82.184,82.148,10.9554]
[1772208506008,11.95225338,82.182,82.121,15.49998092]
[1772208506207,10.42712771,82.181,82.121,15.49998092]
[1772208506396,10.42712771,82.18,82.121,15.49998092]
[1772208506602,10.42712771,82.179,82.121,15.49998092]
[1772208506803,10.42712771,82.178,82.121,15.49998092]
[1772208507002,10.9521,82.174,82.13,10.9578]
[1772208507210,11.95225338,82.182,82.131,15.49998092]
[1772208507403,10.43061257,82.181,82.131,15.49998092]
[1772208507602,10.43061257,82.18,82.131,15.49998092]
[1772208507800,10.43061257,82.179,82.131,15.49998092]
[1772208508004,10.43061257,82.178,82.131,15.49998092]
[1772208508201,10.43061257,82.177,82.131,15.49998092]
[1772208508403,10.43061257,82.176,82.131,15.49998092]
[1772208508605,10.39964164,82.175,82.131,15.49998092]
[1772208508807,11.95225338,82.182,82.131,15.49998092]
[1772208509007,10.952,82.175,82.134,10.9572]
[1772208509208,10.952,82.175,82.135,15.49998092]
[1772208510609,10.952,82.175,82.137,15.49998092]
[1772208511817,11.95225338,82.182,82.138,10.9568]
[1772208512110,10.49747336,82.181,82.138,10.9568]
[1772208512314,10.9515,82.178,82.137,15.49998092]
[1772208512510,11.95225338,82.182,82.137,15.49998092]
[1772208512511,10.49747336,82.177,82.137,15.49998092]
[1772208512710,10.49747336,82.176,82.137,15.49998092]
[1772208512905,10.49747336,82.175,82.139,10.9566]
[1772208513106,10.50022721,82.174,82.139,26.45658092]
[1772208513405,11.95225338,82.182,82.139,26.45658092]
[1772208513610,10.50526739,82.181,82.14,15.49998092]
[1772208513809,10.50526739,82.181,82.141,10.9563]
[1772208513810,10.50526739,82.18,82.141,10.9563]
[1772208514006,10.50526739,82.179,82.141,10.9563]
[1772208514211,10.50526739,82.178,82.141,10.9563]
[1772208514408,10.50526739,82.177,82.141,10.9563]
[1772208514613,10.50526739,82.176,82.141,10.9563]
[1772208514809,10.50526739,82.175,82.141,10.9563]
[1772208515016,10.50526739,82.174,82.141,10.9563]
[1772208515216,10.50526739,82.173,82.141,10.9563]
[1772208515416,10.9505,82.186,82.146,10.9557]
[1772208515618,10.50664783,82.185,82.146,10.9557]
[1772208515917,10.50664783,82.184,82.146,10.9557]
[1772208516212,10.50664783,82.183,82.146,10.9557]
[1772208516417,10.9505,82.186,82.146,10.9557]
[1772208516617,10.49739007,82.185,82.146,10.9557]
[1772208516818,10.49739007,82.184,82.146,10.9557]
[1772208517019,10.49739007,82.183,82.146,10.9557]
[1772208517209,10.9505,82.186,82.146,10.9557]
[1772208517414,10.9507,82.184,82.146,10.9557]
[1772208517712,10.4999752,82.183,82.146,10.9557]
[1772208517917,10.9507,82.184,82.146,10.9557]
[1772208518114,10.951,82.182,82.142,15.49998092]
[1772208518313,10.50193968,82.181,82.142,15.49998092]
[1772208518514,10.50193968,82.18,82.142,15.49998092]
[1772208518819,21.45333968,82.179,82.142,15.49998092]
[1772208519019,23.5664368,82.199,82.142,15.49998092]
[1772208519216,10.50137006,82.198,82.142,15.49998092]
[1772208519414,12.49526612,82.194,82.151,15.70657489]
[1772208519619,10.50137006,82.193,82.151,15.70657489]
[1772208519917,10.9498,82.191,82.153,10.9548]
[1772208520120,10.50137006,82.19,82.153,10.9548]
[1772208520316,10.50137006,82.189,82.153,10.9548]
[1772208520517,10.50137006,82.188,82.153,10.9548]
[1772208520718,10.9506,82.185,82.151,15.70657489]
[1772208520916,10.50137006,82.184,82.151,15.70657489]
[1772208521121,10.50137006,82.183,82.151,15.70657489]
[1772208521322,12.49526612,82.194,82.151,15.70657489]
[1772208521518,10.50039156,82.193,82.151,15.70657489]
[1772208521719,10.50039156,82.192,82.151,15.70657489]
[1772208521916,10.9511,82.181,82.151,15.70657489]
[1772208522118,11.86135778,82.191,82.137,15.497372]
[1772208522315,11.86136905,82.189,82.105,15.497372]
[1772208522625,11.88420695,82.187,82.105,15.497372]
[1772208522820,11.88420695,82.185,82.105,15.497372]
[1772208523022,22.38325166,82.184,82.105,15.497372]
[1772208523222,4.30745171,82.18,82.131,15.497372]
[1772208523521,10.49904471,82.179,82.131,15.497372]
[1772208523721,10.49904471,82.178,82.141,15.497372]
[1772208524025,11.88420695,82.184,82.141,15.497372]
[1772208524227,10.49654049,82.183,82.141,15.497372]
[1772208524422,10.49654049,82.182,82.141,15.497372]
[1772208524625,11.88865323,82.199,82.141,15.497372]
[1772208524821,4.30745171,82.2,82.141,15.497372]
[1772208524822,11.91115889,82.197,82.141,15.497372]
[1772208525021,10.49813765,82.196,82.141,15.497372]
[1772208525323,10.49813765,82.195,82.141,15.497372]
[1772208525523,10.49813765,82.194,82.141,15.497372]
[1772208525717,10.49813765,82.193,82.141,15.497372]
[1772208525919,10.95,82.19,82.145,10.9558]
[1772208526226,10.95,82.19,82.094,21.9252]
[1772208526227,4.30745171,82.21,82.16,19.80482371]
[1772208526521,10.9481,82.204,82.16,15.497372]
[1772208526715,10.49968248,82.203,82.16,15.497372]
[1772208527019,10.49968248,82.202,82.161,15.497372]
[1772208527225,10.49968248,82.201,82.161,15.497372]
[1772208527426,10.49968248,82.2,82.161,15.497372]
[1772208527730,4.30745171,82.19,82.142,15.497372]
[1772208527922,10.41514768,82.189,82.142,15.497372]
[1772208528121,10.41514768,82.188,82.142,15.497372]
[1772208528322,10.41514768,82.187,82.15,19.80482371]
[1772208528517,10.41514768,82.186,82.15,15.497372]
[1772208528726,12.08535266,82.199,82.15,15.497372]
[1772208529025,10.41470153,82.198,82.15,15.497372]
[1772208529227,10.41470153,82.197,82.15,15.497372]
[1772208529526,14.85622483,82.215,82.161,15.497372]
[1772208529527,11.98035028,82.215,82.161,15.497372]
[1772208529725,10.41874953,82.214,82.161,15.497372]
[1772208529926,10.41874953,82.213,82.161,15.497372]
[1772208530121,10.9476,82.207,82.161,15.497372]
[1772208530326,10.41874953,82.206,82.161,15.497372]
[1772208530528,10.41874953,82.205,82.161,15.497372]
[1772208530729,10.41874953,82.204,82.161,15.497372]
[1772208530919,10.41874953,82.203,82.161,15.497372]
[1772208531124,10.41874953,82.202,82.161,15.497372]
[1772208531426,10.41874953,82.201,82.161,15.497372]
[1772208531624,11.98035028,82.215,82.161,15.497372]
[1772208531923,11.98035028,82.215,82.16,4.30745171]
[1772208531924,10.4189774,82.214,82.169,15.497372]
[1772208532123,10.4189774,82.213,82.171,15.497372]
[1772208532324,10.4189774,82.212,82.171,15.497372]
[1772208532629,10.4189774,82.211,82.171,15.497372]
[1772208532830,10.4189774,82.21,82.171,15.497372]
[1772208533031,10.4189774,82.209,82.171,15.497372]
[1772208533233,11.98035028,82.215,82.171,26.449672]
[1772208533422,10.41964096,82.214,82.171,26.449672]
[1772208533626,11.57974665,82.209,82.158,15.497372]
[1772208533831,10.948,82.205,82.159,26.451272]
[1772208534032,10.41964096,82.204,82.159,26.451272]
[1772208534234,10.948,82.205,82.16,4.30745171]
[1772208534431,11.57974665,82.209,82.163,15.497372]
[1772208535526,11.42598057,82.199,82.15,4.30745171]
[1772208535728,10.40656236,82.198,82.15,4.30745171]
[1772208535934,10.40656236,82.197,82.15,4.30745171]
[1772208536133,4.30745171,82.2,82.149,15.497372]
[1772208536134,21.83254293,82.196,82.149,15.497372]
[1772208536334,4.30745171,82.2,82.14,4.30745171]
[1772208536335,11.42556692,82.194,82.14,4.30745171]
[1772208536639,11.42556692,82.189,82.132,15.497372]
[1772208536940,11.44537535,82.187,82.132,15.497372]
[1772208537133,11.42369558,82.185,82.132,15.497372]
[1772208537436,26.68244729,82.18,82.134,10.9573]
[1772208537632,10.40576607,82.179,82.134,10.9573]
[1772208537828,4.30745171,82.15,82.092,15.497372]
[1772208538034,10.40099871,82.149,82.101,15.497372]
[1772208538231,11.44301611,82.149,82.101,15.497372]
[1772208538435,10.9559,82.145,82.101,15.497372]
[1772208539738,11.45804275,82.139,82.086,15.497372]
[1772208540335,11.45763307,82.128,82.07,15.497372]
[1772208540533,11.47642857,82.119,82.07,15.497372]
[1772208540733,32.82696023,82.118,82.07,15.497372]
[1772208540936,11.47642857,82.118,82.07,15.497372]
[1772208541737,11.59077336,82.113,82.053,15.497372]
[1772208541936,11.59077336,82.111,82.053,15.497372]
[1772208542137,10.36696777,82.11,82.053,15.497372]
[1772208542338,11.59041408,82.11,82.053,15.497372]
[1772208542939,22.56971006,82.107,82.054,10.9679]
[1772208543434,10.963,82.092,82.037,15.497372]
[1772208543640,11.54138037,82.091,82.037,15.497372]
[1772208544240,11.540984,82.108,82.038,15.497372]
[1772208544446,11.55881241,82.089,82.005,15.497372]
[1772208544641,10.32448089,82.088,82.005,15.497372]
[1772208544836,11.55881241,82.087,82.005,15.497372]
[1772208545037,11.55881241,82.066,82.005,15.497372]
[1772208545637,10.9672,82.061,82.005,15.497372]
[1772208545838,11.61394213,82.06,82.005,15.497372]
[1772208546443,10.28652889,82.09,82.005,15.497372]
[1772208546444,11.63103333,82.068,82.005,15.497372]
[1772208546942,11.63103333,82.066,82.007,15.497372]
[1772208547642,11.63103333,82.066,81.983,2.12107821]
[1772208547643,11.57914235,82.082,82.019,15.497372]
[1772208548335,11.57914235,82.082,82.02,15.497372]
[1772208549042,22.56169874,82.072,82.02,15.497372]
[1772208549242,11.59609874,82.071,82.02,15.497372]
[1772208550051,11.59609874,82.071,81.991,16.16216566]
[1772208550742,22.66110312,82.069,82.013,27.13566566]
[1772208551041,22.66110312,82.069,82.014,16.16216566]
[1772208551636,11.73306375,82.078,82.017,16.16216566]
[1772208551847,11.73306375,82.109,82.017,16.16216566]
[1772208552945,11.74884502,82.098,82.037,10.9702]
[1772208554141,11.74484148,82.088,82.037,10.9702]
[1772208554347,11.74484148,82.088,82.026,10.9717]
[1772208554548,10.9639,82.085,82.026,27.13386566]
[1772208554749,22.72422569,82.085,82.026,27.13386566]
[1772208554946,11.76032569,82.084,82.026,27.13386566]
[1772208555549,22.77129906,82.08,82.026,27.13386566]
[1772208555948,10.9634,82.089,82.035,16.16216566]
[1772208556151,11.82251293,82.088,82.011,16.16216566]
[1772208556549,11.8377084,82.086,82.04,10.9699]
[1772208556747,11.8377084,82.086,82.026,16.16216566]